[Event "ETCC Women 2013"]
[Site "Warsaw"]
[Date "2013.11.12"]
[Round "5"]
[White "Ziaziulkina, Nastassia"]
[Black "Moser, Eva"]
[Result "1-0"]
[ECO "C41"]
[WhiteElo "2350"]
[BlackElo "2434"]
[PlyCount "73"]
[EventDate "2013.??.??"]
[EventCountry "POL"]
[WhiteTeam "Belarus"]
[BlackTeam "Austria"]
[WhiteTeamCountry "BLR"]
[BlackTeamCountry "AUT"]
[TimeControl "40/5400+30:1800+30"]

1. e4 {[%emt 0:00:00]} d6 {[%emt 0:00:00]} 2. d4 {[%emt 0:00:00]} Nf6 {[%emt 0:
00:00]} 3. Nc3 {[%emt 0:00:00]} e5 {[%emt 0:00:00]} 4. Nf3 {[%emt 0:00:00]}
Nbd7 {[%emt 0:00:00]} 5. Bc4 {[%emt 0:00:00]} Be7 {[%emt 0:00:00]} 6. O-O {
[%emt 0:00:03]} O-O {[%emt 0:00:00]} 7. a4 {[%emt 0:00:06]} a5 {[%emt 0:00:01]}
8. Re1 {[%emt 0:01:02]} c6 {[%emt 0:00:07]} 9. h3 {[%emt 0:00:05]} h6 {[%emt 0:
00:08]} 10. Ba2 {[%emt 0:00:12]} Re8 {[%emt 0:00:15]} 11. Be3 {[%emt 0:00:20]}
Qc7 {[%emt 0:00:22]} 12. Nd2 {[%emt 0:01:10]} Nf8 {[%emt 0:13:44]} 13. Nc4 {
[%emt 0:04:28]} Ra6 {[%emt 0:00:24]} 14. Qf3 {[%emt 0:09:55]} Ng6 {[%emt 0:14:
41]} 15. Rad1 {[%emt 0:05:53]} Rf8 {[%emt 0:06:06]} 16. Rd2 {[%emt 0:06:34]}
Nh7 {[%emt 0:11:17]} 17. Red1 {[%emt 0:12:38]} Ng5 {[%emt 0:06:41]} 18. Qg3 {
[%emt 0:03:00]} Be6 {[%emt 0:08:34]} 19. f3 {[%emt 0:19:50]} f5 {[%emt 0:15:36]
} 20. exf5 {[%emt 0:14:59]} Rxf5 {[%emt 0:01:12]} 21. Nxe5 {[%emt 0:07:09]}
dxe5 {[%emt 0:13:57]} 22. Bxe6+ {[%emt 0:00:15]} Nxe6 {[%emt 0:00:02]} 23. Qxg6
{[%emt 0:00:06]} Rf6 {[%emt 0:00:42]} 24. Qg3 {[%emt 0:01:55]} Nf4 {[%emt 0:02:
48]} 25. dxe5 {[%emt 0:02:17]} Qxe5 {[%emt 0:00:27]} 26. Ne4 {[%emt 0:00:03]}
Rf7 {[%emt 0:02:12]} 27. Kh1 {[%emt 0:00:54]} Ra8 {[%emt 0:00:50]} 28. Rd7 {
[%emt 0:01:36]} Raf8 {[%emt 0:00:45]} 29. c3 {[%emt 0:02:10]} b5 {[%emt 0:02:
28]} 30. axb5 {[%emt 0:01:08]} cxb5 {[%emt 0:00:01]} 31. Ra7 {[%emt 0:00:10]}
b4 {[%emt 0:01:02]} 32. Rdd7 {[%emt 0:01:02]} bxc3 {[%emt 0:00:16]} 33. bxc3 {
[%emt 0:00:08]} Bg5 {[%emt 0:01:12]} 34. Bd4 {[%emt 0:02:28]} Qb5 {[%emt 0:00:
25]} 35. Rxf7 {[%emt 0:00:23]} Rxf7 {[%emt 0:00:00]} 36. Rxf7 {[%emt 0:00:11]}
Kxf7 {[%emt 0:00:08]} 37. Nd6+ {[%emt 0:00:09]} 1-0

[Event "ETCC Women 2013"]
[Site "Warsaw"]
[Date "2013.11.12"]
[Round "5"]
[White "Zozulia, Anna"]
[Black "Franciskovic, Borka"]
[Result "1/2-1/2"]
[ECO "B19"]
[WhiteElo "2334"]
[BlackElo "2263"]
[PlyCount "187"]
[EventDate "2013.??.??"]
[EventCountry "POL"]
[WhiteTeam "Belgium"]
[BlackTeam "Croatia"]
[WhiteTeamCountry "BEL"]
[BlackTeamCountry "CRO"]
[TimeControl "40/5400+30:1800+30"]

1. e4 {[%emt 0:00:00]} c6 {[%emt 0:00:00]} 2. d4 {[%emt 0:00:00]} d5 {[%emt 0:
00:00]} 3. Nc3 {[%emt 0:00:00]} dxe4 {[%emt 0:00:00]} 4. Nxe4 {[%emt 0:00:00]}
Bf5 {[%emt 0:00:00]} 5. Ng3 {[%emt 0:00:04]} Bg6 {[%emt 0:00:00]} 6. Nf3 {
[%emt 0:00:17]} Nd7 {[%emt 0:00:18]} 7. h4 {[%emt 0:00:50]} h6 {[%emt 0:00:13]}
8. h5 {[%emt 0:00:17]} Bh7 {[%emt 0:00:04]} 9. Bd3 {[%emt 0:00:07]} Bxd3 {
[%emt 0:00:05]} 10. Qxd3 {[%emt 0:00:03]} e6 {[%emt 0:00:16]} 11. Bd2 {[%emt 0:
00:20]} Qc7 {[%emt 0:00:18]} 12. O-O-O {[%emt 0:00:37]} Ngf6 {[%emt 0:01:01]}
13. Ne4 {[%emt 0:00:47]} Nxe4 {[%emt 0:01:16]} 14. Qxe4 {[%emt 0:00:05]} Nf6 {
[%emt 0:02:13]} 15. Qe2 {[%emt 0:02:27]} O-O-O {[%emt 0:01:16]} 16. g3 {[%emt
0:05:55]} Bd6 {[%emt 0:04:36]} 17. c4 {[%emt 0:03:08]} c5 {[%emt 0:03:48]} 18.
Bc3 {[%emt 0:06:45]} cxd4 {[%emt 0:02:23]} 19. Nxd4 {[%emt 0:00:55]} a6 {[%emt
0:03:14]} 20. Nb3 {[%emt 0:21:08]} Qc6 {[%emt 0:07:41]} 21. Rh4 {[%emt 0:01:39]
} Bc7 {[%emt 0:16:50]} 22. Nd4 {[%emt 0:08:39]} Qd7 {[%emt 0:16:27]} 23. Rhh1 {
[%emt 0:04:41]} Qa4 {[%emt 0:06:58]} 24. Kb1 {[%emt 0:17:48]} Rhe8 {[%emt 0:06:
18]} 25. a3 {[%emt 0:03:18]} Bb6 {[%emt 0:08:41]} 26. Ka2 {[%emt 0:03:21]} Bxd4
{[%emt 0:01:40]} 27. Rxd4 {[%emt 0:05:03]} Rxd4 {[%emt 0:06:10]} 28. Bxd4 {
[%emt 0:00:04]} Rd8 {[%emt 0:00:53]} 29. Bxf6 {[%emt 0:00:19]} gxf6 {[%emt 0:
00:27]} 30. Rc1 {[%emt 0:00:03]} Qa5 {[%emt 0:02:01]} 31. Rc3 {[%emt 0:07:03]}
Qe5 {[%emt 0:02:44]} 32. Qf3 {[%emt 0:06:58]} f5 {[%emt 0:01:19]} 33. Qe3 {
[%emt 0:02:31]} Qxe3 {[%emt 0:00:40]} 34. Rxe3 {[%emt 0:00:00]} Rg8 {[%emt 0:
02:32]} 35. Re1 {[%emt 0:01:11]} Rg5 {[%emt 0:01:10]} 36. Rh1 {[%emt 0:00:03]}
f4 {[%emt 0:00:50]} 37. gxf4 {[%emt 0:01:12]} Rg4 38. f5 {[%emt 0:00:43]} e5 {
[%emt 0:01:23]} 39. Kb3 {[%emt 0:00:32]} Rf4 {[%emt 0:00:35]} 40. Rh2 {[%emt 0:
00:00]} Rxf5 {[%emt 0:00:00]} 41. Kc3 {[%emt 0:00:47]} Kd7 {[%emt 0:05:44]} 42.
Kd3 {[%emt 0:00:40]} Ke6 {[%emt 0:08:58]} 43. Ke3 {[%emt 0:01:09]} Rf4 {[%emt
0:02:16]} 44. b3 {[%emt 0:00:20]} a5 {[%emt 0:02:13]} 45. f3 {[%emt 0:11:10]}
a4 {[%emt 0:07:36]} 46. Rb2 {[%emt 0:01:23]} axb3 {[%emt 0:00:36]} 47. Rxb3 {
[%emt 0:00:47]} Rxc4 {[%emt 0:00:07]} 48. Rxb7 {[%emt 0:00:30]} Rc3+ {[%emt 0:
01:05]} 49. Kf2 {[%emt 0:00:06]} Rxa3 {[%emt 0:03:05]} 50. Rb6+ {[%emt 0:00:19]
} Kf5 {[%emt 0:00:05]} 51. Rxh6 {[%emt 0:00:11]} Kg5 {[%emt 0:00:34]} 52. Rb6 {
[%emt 0:05:27]} f6 {[%emt 0:03:28]} 53. h6 {[%emt 0:05:41]} Ra7 {[%emt 0:00:50]
} 54. Kg3 {[%emt 0:01:17]} Rh7 {[%emt 0:01:31]} 55. f4+ {[%emt 0:07:04]} exf4+
{[%emt 0:00:31]} 56. Kf3 {[%emt 0:00:02]} Rxh6 {[%emt 0:00:47]} 57. Rb5+ {
[%emt 0:00:04]} f5 {[%emt 0:00:40]} 58. Rb8 {[%emt 0:00:04]} Rh3+ {[%emt 0:00:
30]} 59. Kg2 {[%emt 0:00:54]} Ra3 {[%emt 0:00:28]} 60. Rg8+ {[%emt 0:00:27]}
Kf6 {[%emt 0:00:10]} 61. Kf2 {[%emt 0:01:17]} Rb3 {[%emt 0:00:19]} 62. Re8 {
[%emt 0:00:27]} Ra3 {[%emt 0:00:13]} 63. Rg8 {[%emt 0:00:48]} Rc3 {[%emt 0:00:
45]} 64. Re8 {[%emt 0:00:04]} f3 {[%emt 0:01:07]} 65. Re3 {[%emt 0:00:40]} Rc2+
{[%emt 0:00:41]} 66. Kxf3 {[%emt 0:00:05]} Kg5 {[%emt 0:00:13]} 67. Ra3 {[%emt
0:00:30]} Rc4 {[%emt 0:00:18]} 68. Kg3 {[%emt 0:00:43]} Rg4+ {[%emt 0:00:22]}
69. Kf3 {[%emt 0:00:13]} Rh4 {[%emt 0:00:26]} 70. Kg2 {[%emt 0:00:38]} Kg4 {
[%emt 0:01:39]} 71. Ra4+ {[%emt 0:02:07]} f4 {[%emt 0:00:07]} 72. Ra3 {[%emt 0:
00:03]} Rh6 {[%emt 0:00:39]} 73. Rb3 {[%emt 0:00:07]} Rc6 {[%emt 0:00:13]} 74.
Ra3 {[%emt 0:00:06]} Re6 {[%emt 0:00:34]} 75. Rb3 {[%emt 0:00:08]} Re3 {[%emt
0:00:27]} 76. Rb8 {[%emt 0:00:56]} Re2+ {[%emt 0:00:26]} 77. Kf1 {[%emt 0:00:
04]} Kf3 {[%emt 0:00:33]} 78. Rb3+ {[%emt 0:00:23]} Re3 {[%emt 0:00:03]} 79.
Rb2 {[%emt 0:00:07]} Ra3 {[%emt 0:00:15]} 80. Rf2+ {[%emt 0:00:05]} Kg4 {[%emt
0:00:28]} 81. Rg2+ {[%emt 0:00:34]} Kf5 {[%emt 0:00:19]} 82. Rb2 {[%emt 0:00:
21]} Kg4 {[%emt 0:01:07]} 83. Rg2+ {[%emt 0:00:43]} Rg3 {[%emt 0:00:19]} 84.
Ra2 {[%emt 0:00:35]} Kh3 {[%emt 0:01:14]} 85. Ra8 {[%emt 0:00:31]} Kg4 {[%emt
0:00:39]} 86. Kf2 {[%emt 0:00:27]} Rf3+ {[%emt 0:00:34]} 87. Kg2 {[%emt 0:00:
21]} Re3 {[%emt 0:00:50]} 88. Rg8+ {[%emt 0:00:10]} Kf5 {[%emt 0:00:03]} 89.
Kf2 {[%emt 0:02:16]} Re5 {[%emt 0:00:38]} 90. Kf3 {[%emt 0:00:11]} Re3+ {[%emt
0:00:07]} 91. Kf2 {[%emt 0:00:03]} Ke4 {[%emt 0:01:36]} 92. Re8+ {[%emt 0:00:
07]} Kd3 {[%emt 0:00:24]} 93. Rd8+ {[%emt 0:00:05]} Ke4 {[%emt 0:00:39]} 94.
Re8+ {[%emt 0:00:03] Ke5} 1/2-1/2

[Event "ETCC Open 2013"]
[Site "Warsaw"]
[Date "2013.11.12"]
[Round "5"]
[White "Bartel, Mateusz"]
[Black "Kjartansson, Gudmundur"]
[Result "1-0"]
[ECO "B00"]
[WhiteElo "2626"]
[BlackElo "2455"]
[PlyCount "110"]
[EventDate "2013.??.??"]
[EventCountry "POL"]
[WhiteTeam "Polen"]
[BlackTeam "Island"]
[WhiteTeamCountry "POL"]
[BlackTeamCountry "ISL"]
[TimeControl "40/5400+30:1800+30"]

1. e4 {[%emt 0:00:00]} d6 {[%emt 0:00:00]} 2. Bc4 {[%emt 0:00:00]} g6 {[%emt 0:
03:13]} 3. Nf3 {[%emt 0:00:20]} Bg7 {[%emt 0:01:02]} 4. d4 {[%emt 0:00:07]} Nf6
{[%emt 0:01:49]} 5. Qe2 {[%emt 0:01:33]} O-O {[%emt 0:07:21]} 6. h3 {[%emt 0:
01:44]} c5 {[%emt 0:07:53]} 7. dxc5 {[%emt 0:04:41]} Qa5+ {[%emt 0:01:48]} 8.
Nc3 {[%emt 0:01:43]} Qxc5 {[%emt 0:00:51]} 9. Be3 {[%emt 0:01:22]} Qc7 {[%emt
0:05:34]} 10. O-O {[%emt 0:00:13]} a6 {[%emt 0:00:51]} 11. a4 {[%emt 0:09:30]}
b6 {[%emt 0:03:47]} 12. Bd4 {[%emt 0:05:20]} e5 {[%emt 0:04:49]} 13. Nd5 {
[%emt 0:00:26]} Nxd5 {[%emt 0:01:14]} 14. Bxd5 {[%emt 0:00:04]} Bb7 {[%emt 0:
01:34]} 15. Bxb7 {[%emt 0:00:08]} Qxb7 {[%emt 0:00:02]} 16. Bc3 {[%emt 0:00:08]
} Nc6 {[%emt 0:08:37]} 17. Rfd1 {[%emt 0:02:09]} Rfd8 {[%emt 0:02:05]} 18. b3 {
[%emt 0:06:32]} Rac8 {[%emt 0:06:36]} 19. Bb2 {[%emt 0:03:34]} Rd7 {[%emt 0:01:
00]} 20. c4 {[%emt 0:01:43]} Nd8 {[%emt 0:04:04]} 21. Ba3 {[%emt 0:03:11]} Qc6
{[%emt 0:02:50]} 22. Rd5 {[%emt 0:04:02]} Ne6 {[%emt 0:02:29]} 23. g3 {[%emt 0:
05:39]} Nc7 {[%emt 0:02:36]} 24. Rd3 {[%emt 0:00:08]} Ne6 {[%emt 0:00:21]} 25.
Rad1 {[%emt 0:01:53]} Rcd8 {[%emt 0:04:23]} 26. Qe3 {[%emt 0:06:07]} h6 {[%emt
0:10:33]} 27. Kh2 {[%emt 0:05:09]} Kh7 {[%emt 0:00:16]} 28. Bb4 {[%emt 0:00:44]
} Nd4 {[%emt 0:02:54]} 29. Nxd4 {[%emt 0:01:39]} exd4 {[%emt 0:00:02]} 30. Rxd4
{[%emt 0:00:11]} Bxd4 {[%emt 0:01:34]} 31. Rxd4 {[%emt 0:00:16]} Re8 {[%emt 0:
03:02]} 32. Qf4 {[%emt 0:04:19]} Re6 {[%emt 0:03:07]} 33. Rd5 {[%emt 0:00:37]}
g5 {[%emt 0:06:59]} 34. Qf5+ {[%emt 0:06:52]} Kg8 {[%emt 0:00:06]} 35. h4 {
[%emt 0:00:05]} gxh4 {[%emt 0:01:28]} 36. Qg4+ {[%emt 0:00:14]} Rg6 {[%emt 0:
00:32]} 37. Qxh4 {[%emt 0:00:04]} Qc8 {[%emt 0:00:20]} 38. Qf4 {[%emt 0:01:19]}
Qd8 {[%emt 0:00:31]} 39. Bc3 {[%emt 0:00:08]} Qe7 {[%emt 0:00:36]} 40. Qe3 {
[%emt 0:00:00]} Rg5 {[%emt 0:00:00]} 41. Qxb6 {[%emt 0:04:42]} Rxd5 {[%emt 0:
26:14]} 42. exd5 {[%emt 0:00:14]} Rb7 {[%emt 0:04:03]} 43. Qd4 {[%emt 0:02:08]}
f6 {[%emt 0:00:19]} 44. b4 {[%emt 0:00:06]} Qf7 {[%emt 0:01:17]} 45. Qf4 {
[%emt 0:02:14]} Kg7 {[%emt 0:01:13]} 46. Qxd6 {[%emt 0:02:29]} Qh5+ {[%emt 0:
00:02]} 47. Kg2 {[%emt 0:00:09]} Qf5 {[%emt 0:00:03]} 48. Qf4 {[%emt 0:00:07]}
Qxf4 {[%emt 0:00:37]} 49. gxf4 {[%emt 0:00:02]} Kg6 {[%emt 0:00:41]} 50. c5 {
[%emt 0:00:39]} Kf5 {[%emt 0:00:41]} 51. c6 {[%emt 0:00:24]} Rg7+ {[%emt 0:00:
18]} 52. Kf3 {[%emt 0:00:16]} Rg8 {[%emt 0:01:10]} 53. d6 {[%emt 0:00:17]} Ke6
{[%emt 0:00:27]} 54. d7 {[%emt 0:00:06]} Kd6 {[%emt 0:00:34]} 55. Bxf6 {[%emt
0:00:07]} Kd5 {Ke4+} 1-0

[Event "ETCC Open 2013"]
[Site "Warsaw"]
[Date "2013.11.12"]
[Round "5"]
[White "Duda, Jan-Krzysztof"]
[Black "Salgado Lopez, Ivan"]
[Result "1/2-1/2"]
[ECO "B15"]
[WhiteElo "2542"]
[BlackElo "2610"]
[PlyCount "82"]
[EventDate "2013.??.??"]
[EventCountry "POL"]
[WhiteTeam "Polen"]
[BlackTeam "Spanien"]
[WhiteTeamCountry "POL"]
[BlackTeamCountry "ESP"]
[TimeControl "40/5400+30:1800+30"]

1. e4 {[%emt 0:00:00]} c6 {[%emt 0:00:00]} 2. d4 {[%emt 0:00:00]} d5 {[%emt 0:
00:00]} 3. Nc3 {[%emt 0:00:00]} dxe4 {[%emt 0:00:00]} 4. Nxe4 {[%emt 0:00:03]}
Nf6 {[%emt 0:00:09]} 5. Nxf6+ {[%emt 0:00:06]} exf6 {[%emt 0:00:07]} 6. c3 {
[%emt 0:01:26]} Bd6 {[%emt 0:00:12]} 7. Bd3 {[%emt 0:00:41]} O-O {[%emt 0:00:
12]} 8. Ne2 {[%emt 0:00:06]} Re8 {[%emt 0:00:27]} 9. O-O {[%emt 0:01:24]} Na6 {
[%emt 0:00:07]} 10. Bf4 {[%emt 0:04:57]} Nc7 {[%emt 0:01:14]} 11. Qd2 {[%emt 0:
01:13]} g6 {[%emt 0:04:33]} 12. Rfe1 {[%emt 0:03:04]} Be6 {[%emt 0:00:33]} 13.
Bg3 {[%emt 0:12:38]} Bxg3 {[%emt 0:12:45]} 14. hxg3 {[%emt 0:03:01]} Qd6 {
[%emt 0:00:59]} 15. Nf4 {[%emt 0:06:19]} Rad8 {[%emt 0:00:56]} 16. b4 {[%emt 0:
03:08]} b6 {[%emt 0:04:42]} 17. Rad1 {[%emt 0:04:06]} Kg7 {[%emt 0:02:07]} 18.
Nxe6+ {[%emt 0:06:30]} Rxe6 {[%emt 0:09:41]} 19. Bc4 {[%emt 0:13:30]} Rxe1+ {
[%emt 0:01:42]} 20. Rxe1 {[%emt 0:02:45]} Re8 {[%emt 0:11:13]} 21. Rd1 {[%emt
0:03:03]} h5 {[%emt 0:03:38]} 22. a4 {[%emt 0:01:16]} Re7 {[%emt 0:04:08]} 23.
Be2 {[%emt 0:02:35]} a5 {[%emt 0:06:20]} 24. bxa5 {[%emt 0:11:17]} bxa5 {[%emt
0:00:16]} 25. Bf3 {[%emt 0:00:25]} Nd5 {[%emt 0:10:36]} 26. c4 {[%emt 0:00:27]}
Nb4 {[%emt 0:00:41]} 27. g4 {[%emt 0:02:15]} hxg4 {[%emt 0:02:13]} 28. Bxg4 {
[%emt 0:00:21]} c5 {[%emt 0:01:58]} 29. dxc5 {[%emt 0:04:34]} Qxc5 {[%emt 0:02:
04]} 30. Qf4 {[%emt 0:03:05]} Qe5 {[%emt 0:08:03]} 31. Qxe5 {[%emt 0:03:21]}
fxe5 {[%emt 0:00:47]} 32. Bd7 {[%emt 0:00:10]} e4 {[%emt 0:02:47]} 33. c5 {
[%emt 0:03:27]} Re5 {[%emt 0:00:23]} 34. c6 {[%emt 0:00:15]} Rc5 {[%emt 0:00:
36]} 35. Re1 {[%emt 0:02:17]} f5 {[%emt 0:02:28]} 36. f3 {[%emt 0:00:22]} Nd3 {
[%emt 0:05:25]} 37. Re3 {[%emt 0:01:05]} Rc1+ {[%emt 0:02:22]} 38. Kh2 {[%emt
0:00:02]} Ne5 {[%emt 0:01:11]} 39. Kg3 {[%emt 0:00:47]} Nd3 {[%emt 0:01:09]}
40. Kh2 {[%emt 0:00:00]} Ne5 {[%emt 0:00:00]} 41. Kg3 {[%emt 0:02:41]} Nd3 {
[%emt 0:14:55]} 1/2-1/2

[Event "ETCC Open 2013"]
[Site "Warsaw"]
[Date "2013.11.12"]
[Round "5"]
[White "Fedorchuk, Sergey A"]
[Black "Szabo, Gergely-Andras-Gyul"]
[Result "1/2-1/2"]
[ECO "C07"]
[WhiteElo "2666"]
[BlackElo "2548"]
[PlyCount "92"]
[EventDate "2013.??.??"]
[EventCountry "POL"]
[WhiteTeam "Ukraine"]
[BlackTeam "Rumänien"]
[WhiteTeamCountry "UKR"]
[BlackTeamCountry "ROU"]
[TimeControl "40/5400+30:1800+30"]

1. e4 {[%emt 0:00:00]} e6 {[%emt 0:00:00]} 2. d4 {[%emt 0:00:27]} d5 {[%emt 0:
00:00]} 3. Nd2 {[%emt 0:00:33]} c5 {[%emt 0:00:00]} 4. dxc5 {[%emt 0:07:44]}
Bxc5 {[%emt 0:00:03]} 5. exd5 {[%emt 0:05:37]} exd5 {[%emt 0:07:51]} 6. Nb3 {
[%emt 0:03:59]} Bb6 {[%emt 0:00:57]} 7. Bb5+ {[%emt 0:08:59]} Nc6 {[%emt 0:01:
34]} 8. Qe2+ {[%emt 0:08:16]} Nge7 {[%emt 0:06:37]} 9. Bg5 {[%emt 0:00:27]} h6
{[%emt 0:03:48]} 10. Bh4 {[%emt 0:04:08]} Be6 {[%emt 0:03:44]} 11. Nf3 {[%emt
0:00:38]} O-O {[%emt 0:01:17]} 12. O-O {[%emt 0:05:27]} Qc8 {[%emt 0:05:34]}
13. Bxe7 {[%emt 0:15:57]} Nxe7 {[%emt 0:00:44]} 14. Nfd4 {[%emt 0:00:07]} Nc6 {
[%emt 0:05:09]} 15. c3 {[%emt 0:05:50]} Bg4 {[%emt 0:03:24]} 16. Qd2 {[%emt 0:
03:39]} Ne5 {[%emt 0:01:56]} 17. h3 {[%emt 0:00:54]} Bh5 {[%emt 0:10:13]} 18.
Qf4 {[%emt 0:06:12]} Qc7 {[%emt 0:12:05]} 19. Qh4 {[%emt 0:03:21]} Bg6 {[%emt
0:01:54]} 20. f4 {[%emt 0:01:47]} Bd3 {[%emt 0:01:43]} 21. Bxd3 {[%emt 0:05:45]
} Nxd3 {[%emt 0:00:09]} 22. Kh1 {[%emt 0:00:13]} Qd8 {[%emt 0:16:11]} 23. Qh5 {
[%emt 0:03:46]} Qd6 {[%emt 0:02:30]} 24. Nf5 {[%emt 0:03:39]} Qf6 {[%emt 0:01:
25]} 25. Rf3 {[%emt 0:00:58]} Nf2+ {[%emt 0:02:11]} 26. Kh2 {[%emt 0:00:01]}
Ne4 {[%emt 0:00:54]} 27. Nbd4 {[%emt 0:01:10]} Rad8 {[%emt 0:01:34]} 28. Rd1 {
[%emt 0:00:22]} Bc7 {[%emt 0:03:12]} 29. Kg1 {[%emt 0:00:14]} Bb6 {[%emt 0:01:
30]} 30. Ne3 {[%emt 0:00:39]} Qd6 {[%emt 0:03:54]} 31. Ndf5 {[%emt 0:02:19]}
Bxe3+ {[%emt 0:01:32]} 32. Nxe3 {[%emt 0:00:44]} Qb6 {[%emt 0:00:25]} 33. Kh2 {
[%emt 0:00:22]} Nf6 {[%emt 0:00:09]} 34. Qh4 {[%emt 0:00:15]} Qe6 {[%emt 0:01:
43]} 35. Rd4 {[%emt 0:02:03]} Rfe8 {[%emt 0:00:28]} 36. Kg1 {[%emt 0:00:23]}
Ne4 {[%emt 0:00:50]} 37. f5 {[%emt 0:00:53]} Qb6 {[%emt 0:00:29]} 38. Kh2 {
[%emt 0:00:27]} Ng5 {[%emt 0:00:28]} 39. Rg3 {[%emt 0:00:17]} Re4 {[%emt 0:00:
08]} 40. Rxe4 {[%emt 0:00:00]} dxe4 {[%emt 0:00:00]} 41. Qf4 {[%emt 0:05:03]}
Qxb2 {[%emt 0:07:43]} 42. h4 {[%emt 0:19:41]} Nf3+ {[%emt 0:01:03]} 43. Kh3 {
[%emt 0:00:04]} Ng1+ {[%emt 0:01:37]} 44. Kh2 {[%emt 0:00:04]} Nf3+ {[%emt 0:
04:07]} 45. Kh3 {[%emt 0:00:03]} Ng1+ {[%emt 0:00:35]} 46. Kh2 {[%emt 0:00:01]}
Nf3+ {[%emt 0:01:35]} 1/2-1/2

[Event "ETCC Open 2013"]
[Site "Warsaw"]
[Date "2013.11.12"]
[Round "5"]
[White "Heberla, Bartlomiej"]
[Black "Sokolov, Ivan"]
[Result "*"]
[ECO "A21"]
[WhiteElo "2556"]
[BlackElo "2625"]
[PlyCount "198"]
[EventDate "2013.??.??"]
[EventCountry "POL"]
[WhiteTeam "Polen"]
[BlackTeam "Niederlande"]
[WhiteTeamCountry "POL"]
[BlackTeamCountry "NED"]
[TimeControl "40/5400+30:1800+30"]

1. c4 {[%emt 0:00:00]} e5 {[%emt 0:00:12]} 2. Nc3 {[%emt 0:00:00]} Bb4 {[%emt
0:00:54]} 3. Nd5 {[%emt 0:00:00]} Bc5 {[%emt 0:00:14]} 4. Nf3 {[%emt 0:00:40]}
c6 {[%emt 0:00:45]} 5. Nc3 {[%emt 0:00:08]} d6 {[%emt 0:02:53]} 6. d4 {[%emt 0:
11:52]} exd4 {[%emt 0:00:33]} 7. Nxd4 {[%emt 0:00:04]} Nf6 {[%emt 0:00:17]} 8.
Nb3 {[%emt 0:08:41]} Bb4 {[%emt 0:03:20]} 9. Bg5 {[%emt 0:00:22]} Nbd7 {[%emt
0:09:50]} 10. Qc2 {[%emt 0:15:36]} h6 {[%emt 0:04:54]} 11. Bh4 {[%emt 0:00:46]}
O-O {[%emt 0:13:05]} 12. e3 {[%emt 0:01:00]} Re8 {[%emt 0:09:09]} 13. a3 {
[%emt 0:16:45]} Bxc3+ {[%emt 0:01:18]} 14. Qxc3 {[%emt 0:00:06]} g5 {[%emt 0:
05:08]} 15. Bg3 {[%emt 0:00:47]} Ne4 {[%emt 0:00:05]} 16. Qc2 {[%emt 0:01:42]}
Ndc5 {[%emt 0:03:47]} 17. Bd3 {[%emt 0:18:46]} Nxd3+ {[%emt 0:02:54]} 18. Qxd3
{[%emt 0:01:20]} Bf5 {[%emt 0:00:09]} 19. Qd1 {[%emt 0:03:34]} Qb6 {[%emt 0:11:
15]} 20. O-O {[%emt 0:06:25]} Rad8 {[%emt 0:01:23]} 21. Nd4 {[%emt 0:03:11]}
Bg6 {[%emt 0:01:14]} 22. Qc1 {[%emt 0:00:52]} d5 {[%emt 0:03:11]} 23. cxd5 {
[%emt 0:04:57]} Rxd5 {[%emt 0:00:10]} 24. f3 {[%emt 0:00:34]} Nxg3 {[%emt 0:01:
26]} 25. hxg3 {[%emt 0:00:02]} Rde5 {[%emt 0:00:04]} 26. b4 {[%emt 0:02:55]}
Rxe3 {[%emt 0:00:21]} 27. Qc5 {[%emt 0:00:05]} Qxc5 {[%emt 0:01:52]} 28. bxc5 {
[%emt 0:00:02]} Rd8 {[%emt 0:00:17]} 29. Rfd1 {[%emt 0:00:22]} Rc3 {[%emt 0:02:
41]} 30. Kh2 {[%emt 0:01:22]} Rxc5 {[%emt 0:00:40]} 31. Nxc6 {[%emt 0:00:15]}
Re8 {[%emt 0:04:52]} 32. Nb4 {[%emt 0:00:03]} a5 {[%emt 0:00:28]} 33. Nd5 {
[%emt 0:00:05]} Kg7 {[%emt 0:01:21]} 34. Rac1 {[%emt 0:01:16]} Rec8 {[%emt 0:
02:40]} 35. Rxc5 {[%emt 0:00:05]} Rxc5 {[%emt 0:00:03]} 36. g4 {[%emt 0:01:32]}
b5 {[%emt 0:00:55]} 37. Kg3 {[%emt 0:01:25]} f5 {[%emt 0:06:20]} 38. gxf5 {
[%emt 0:00:24]} Bxf5 {[%emt 0:00:02]} 39. Ne3 {[%emt 0:00:23]} Be6 {[%emt 0:00:
07]} 40. Rd6 {[%emt 0:00:00]} Kf7 {[%emt 0:00:00]} 41. Rb6 {[%emt 0:04:51]} h5
{[%emt 0:03:08]} 42. f4 {[%emt 0:00:09]} Rc3 {[%emt 0:01:02]} 43. Kf3 {[%emt 0:
00:06]} gxf4 {[%emt 0:06:05]} 44. Kxf4 {[%emt 0:00:08]} Rc5 {[%emt 0:01:31]}
45. Rb7+ {[%emt 0:05:10]} Kf6 {[%emt 0:01:26]} 46. Ke4 {[%emt 0:00:09]} a4 {
[%emt 0:01:41]} 47. Kd4 {[%emt 0:01:02]} Rg5 {[%emt 0:00:02]} 48. Ke4 {[%emt 0:
03:23]} Bb3 {[%emt 0:00:26]} 49. Rb6+ {[%emt 0:04:47]} Be6 {[%emt 0:04:45]} 50.
Rb7 {[%emt 0:02:28]} Bb3 {[%emt 0:00:38]} 51. Rb6+ {[%emt 0:00:07]} Ke7 {[%emt
0:00:04]} 52. Nf5+ {[%emt 0:06:17]} Kd7 {[%emt 0:00:35]} 53. Rxb5 {[%emt 0:00:
08]} Rxg2 {[%emt 0:00:17]} 54. Nd4 {[%emt 0:02:44]} Rg4+ {[%emt 0:00:10]} 55.
Ke5 {[%emt 0:01:57]} Kc7 {[%emt 0:03:53]} 56. Rc5+ {[%emt 0:00:40]} Kb6 {[%emt
0:00:22]} 57. Rb5+ {[%emt 0:00:32]} Ka6 {[%emt 0:00:09]} 58. Rb8 {[%emt 0:00:
14]} Rg3 {[%emt 0:02:05]} 59. Nc6 {[%emt 0:00:45]} Rg6 {[%emt 0:01:54]} 60. Nd4
{[%emt 0:00:15]} Ka7 {[%emt 0:00:52]} 61. Rb5 {[%emt 0:03:41]} Rb6 {[%emt 0:02:
34]} 62. Kf4 {[%emt 0:00:17]} Bd1 {[%emt 0:00:41]} 63. Rd5 {[%emt 0:00:46]} Ka6
{[%emt 0:00:14]} 64. Rd8 {[%emt 0:01:22]} Rg6 {[%emt 0:01:01]} 65. Rb8 {[%emt
0:01:30]} Rf6+ {[%emt 0:02:19]} 66. Ke5 {[%emt 0:00:15]} Rb6 {[%emt 0:00:07]}
67. Ra8+ {[%emt 0:00:06]} Kb7 {[%emt 0:00:03]} 68. Rh8 {[%emt 0:00:53]} Rg6 {
[%emt 0:00:05]} 69. Kd5 {[%emt 0:00:40]} Rg3 {[%emt 0:00:53]} 70. Rh7+ {[%emt
0:00:09]} Kc8 {[%emt 0:00:46]} 71. Kd6 {[%emt 0:00:40]} Rd3 {[%emt 0:01:51]}
72. Kc5 {[%emt 0:00:44]} Rxa3 {[%emt 0:00:33]} 73. Nb5 {[%emt 0:00:35]} Rg3 {
[%emt 0:01:17]} 74. Kc6 {[%emt 0:00:35]} Bf3+ {[%emt 0:00:12]} 75. Kd6 {[%emt
0:00:03]} Rg6+ {[%emt 0:00:12]} 76. Kc5 {[%emt 0:00:04]} Kd8 {[%emt 0:01:51]}
77. Nd4 {[%emt 0:00:40]} Rg5+ {[%emt 0:00:36]} 78. Kc4 {[%emt 0:00:46]} Bg4 {
[%emt 0:00:11]} 79. Kb4 {[%emt 0:00:04]} Bd7 {[%emt 0:00:11]} 80. Ne2 {[%emt 0:
01:00]} Rg4+ {[%emt 0:00:13]} 81. Ka3 {[%emt 0:00:03]} h4 {[%emt 0:00:23]} 82.
Nc3 {[%emt 0:00:52]} Rd4 {[%emt 0:01:00]} 83. Ne2 {[%emt 0:00:45]} Rc4 {[%emt
0:02:33]} 84. Kb2 {[%emt 0:00:30]} Rc2+ {[%emt 0:00:55]} 85. Ka3 {[%emt 0:00:
21]} Rxe2 {[%emt 0:00:24]} 86. Rxh4 {[%emt 0:00:03]} Re3+ {[%emt 0:00:16]} 87.
Ka2 {[%emt 0:00:08]} Kc7 {[%emt 0:02:27]} 88. Rh1 {[%emt 0:00:21]} Kb6 {[%emt
0:00:12]} 89. Rh5 {[%emt 0:00:43]} Bb5 {[%emt 0:00:22]} 90. Rg5 {[%emt 0:00:12]
} Bc4+ {[%emt 0:00:19]} 91. Ka1 {[%emt 0:00:08]} Re2 {[%emt 0:00:18]} 92. Rh5 {
[%emt 0:00:32]} Kc6 {[%emt 0:00:17]} 93. Rg5 {[%emt 0:00:21]} Bd5 {[%emt 0:00:
09]} 94. Rg4 {[%emt 0:00:25]} Kb5 {[%emt 0:00:10]} 95. Rg1 {[%emt 0:00:27]} Kb4
{[%emt 0:00:13]} 96. Rb1+ {[%emt 0:00:21]} Bb3 {[%emt 0:00:53]} 97. Rc1 {[%emt
0:01:34]} Bc2 {[%emt 0:02:05]} 98. Kb2 {[%emt 0:00:34]} Be4+ {[%emt 0:00:54]}
99. Ka1 {[%emt 0:00:02]} Re3 {[%emt 0:01:07]} *